bitfinex-derivatives/quotes_BTCF0:USTF0_20250905
["timestamp","ask_amount","ask_price","bid_price","bid_amount"]
[1757101871249,1.82382216,111500.0,111490.0,0.03895]
[1757101872838,1.00094216,111500.0,111490.0,0.03895]
[1757101873043,1.82338216,111500.0,111490.0,0.03895]
[1757101878153,2.18418216,111500.0,111490.0,0.03895]
[1757101878647,2.29929824,111500.0,111490.0,0.003]
[1757101878847,2.5758249,111500.0,111490.0,0.003]
[1757101879446,2.54929824,111500.0,111490.0,0.003]
[1757101879647,0.38482608,111480.0,111470.0,0.03612]
[1757101879842,1.56774608,111480.0,111470.0,0.03602]
[1757101880148,1.93286216,111480.0,111470.0,0.03602]
[1757101880543,1.11074216,111480.0,111470.0,0.03602]
[1757101880749,1.20259,111480.0,111470.0,0.03602]
[1757101880952,1.93282216,111480.0,111470.0,0.03602]
[1757101881353,1.56770608,111480.0,111470.0,0.03602]
[1757101881855,1.56770608,111480.0,111470.0,0.04602]
[1757101882257,1.56770608,111480.0,111470.0,0.04802]
[1757101882557,1.93282216,111480.0,111470.0,0.04802]
[1757101883155,1.93282216,111480.0,111470.0,0.04602]
[1757101884249,1.93282216,111480.0,111470.0,0.04702]
[1757101885156,1.93282216,111480.0,111470.0,0.04602]
[1757101886350,1.56770608,111480.0,111470.0,0.04602]
[1757101887655,1.20183,111480.0,111470.0,0.1357241]
[1757101887848,1.20183,111480.0,111470.0,0.50084018]
[1757101888158,1.56694608,111480.0,111470.0,0.50084018]
[1757101888859,0.74562608,111480.0,111470.0,0.50084018]
[1757101889056,1.56690608,111480.0,111470.0,0.50184018]
[1757101889252,0.38482608,111480.0,111470.0,0.50384018]
[1757101889462,0.84091,111480.0,111470.0,1.14464018]
[1757101889659,0.01971,111480.0,111470.0,1.14464018]
[1757101889959,0.84087,111480.0,111470.0,1.14464018]
[1757101890257,1.20598608,111480.0,111470.0,0.68982]
[1757101890457,1.20598608,111480.0,111470.0,1.14464018]
[1757101892254,0.84087,111480.0,111470.0,1.14464018]
[1757101893057,0.38482608,111480.0,111470.0,1.14464018]
[1757101893360,1.20602608,111480.0,111470.0,1.14464018]
[1757101895263,1.20602608,111480.0,111470.0,0.86464018]
[1757101895465,1.20602608,111480.0,111470.0,0.50384018]
[1757101896468,0.01971,111480.0,111470.0,0.49384018]
[1757101896669,1.20586608,111480.0,111470.0,0.82384018]
[1757101896973,1.20586608,111480.0,111470.0,0.50384018]
[1757101897474,0.84075,111480.0,111470.0,0.50382704]
[1757101902679,0.84075,111480.0,111470.0,0.86462704]
[1757101903980,0.84075,111480.0,111470.0,1.19462704]
[1757101904781,0.84075,111480.0,111470.0,1.10492294]
[1757101905173,0.84027,111480.0,111470.0,0.8295233]
[1757101905380,0.84027,111480.0,111470.0,1.19462624]
[1757101906883,0.84027,111480.0,111470.0,1.10492294]
[1757101908288,0.84027,111480.0,111470.0,1.19462634]
[1757101908683,0.84027,111480.0,111470.0,1.10492294]
[1757101913489,0.84027,111480.0,111470.0,0.40982]
[1757101914383,1.20537294,111480.0,111470.0,0.04902]
[1757101919787,1.56617294,111480.0,111470.0,0.04902]
[1757101919988,1.93127588,111480.0,111470.0,0.013]
[1757101920184,2.19041541,111480.0,111470.0,0.013]
[1757101920389,2.19041541,111480.0,111450.0,0.01352]
[1757101920590,0.01491,111450.0,111440.0,0.03683]
[1757101920791,1.56093294,111450.0,111440.0,0.13673]
[1757101922395,1.56093294,111450.0,111440.0,0.13873]
[1757101923193,0.83483,111450.0,111440.0,0.50383294]
[1757101923398,0.83483,111450.0,111440.0,0.86463294]
[1757101923786,0.83483,111450.0,111440.0,0.49953]
[1757101923986,0.83483,111450.0,111440.0,0.13873]
[1757101924394,0.83483,111450.0,111440.0,0.49953]
[1757101924692,0.01491,111450.0,111440.0,0.50053]
[1757101924897,0.83523,111450.0,111440.0,0.50053]
[1757101926301,1.56113294,111450.0,111440.0,0.03973]
[1757101927695,1.56113294,111450.0,111440.0,0.03773]
[1757101927899,1.56113294,111450.0,111440.0,0.03973]
[1757101928301,1.56113294,111450.0,111440.0,0.03773]
[1757101928502,1.56113294,111450.0,111440.0,0.03973]
[1757101930202,0.74081294,111450.0,111440.0,0.03973]
[1757101930404,1.19675,111450.0,111440.0,0.03973]
[1757101930699,0.83611,111450.0,111440.0,1.47536044]
[1757101930903,0.83611,111450.0,111440.0,1.33563294]
[1757101932303,0.83611,111450.0,111440.0,0.97053]
[1757101933905,0.83611,111450.0,111440.0,1.42536044]
[1757101934810,0.83627,111450.0,111440.0,1.42536044]
[1757101936106,0.82136,111450.0,111440.0,1.42536044]
[1757101939906,0.83627,111450.0,111440.0,1.01563294]
[1757101940106,1.20137294,111450.0,111440.0,0.40053]
[1757101943209,1.20137294,111450.0,111440.0,0.74053]
[1757101943210,0.38001294,111450.0,111440.0,0.74053]
[1757101943402,0.83575,111450.0,111440.0,0.40053]
[1757101944210,1.20085294,111450.0,111440.0,0.40053]
[1757101946614,1.93607588,111450.0,111440.0,0.003]
[1757101947006,1.57097294,111450.0,111440.0,0.003]
[1757101947207,0.75013294,111450.0,111440.0,0.003]
[1757101947403,1.56153294,111450.0,111440.0,0.02542]
[1757101947614,1.56153294,111450.0,111440.0,0.003]
[1757101948006,1.56153294,111450.0,111440.0,0.02342]
[1757101948515,1.56153294,111450.0,111440.0,0.03639]
[1757101948910,1.56153294,111450.0,111440.0,0.03539]
[1757101949606,0.74081294,111450.0,111440.0,0.03539]
[1757101950008,1.56125294,111450.0,111440.0,0.03539]
[1757101953015,1.56125294,111450.0,111430.0,0.37466]
[1757101953211,0.36510294,111440.0,111430.0,0.39708]
[1757101953417,0.01491,111440.0,111430.0,0.39708]
[1757101953716,0.38001294,111440.0,111430.0,0.39708]
[1757101954018,0.38001294,111440.0,111430.0,0.39908]
[1757101954818,0.38001294,111440.0,111430.0,0.40008]
[1757101955416,0.38001294,111440.0,111430.0,0.03928]
[1757101955417,0.74081294,111440.0,111430.0,0.03928]
[1757101955718,0.74081294,111440.0,111430.0,0.01686]
[1757101955907,0.99081294,111440.0,111430.0,0.003]
[1757101957915,1.55705294,111420.0,111410.0,0.03539]
[1757101958418,1.55705294,111420.0,111410.0,0.04239]
[1757101959506,1.9231352,111420.0,111410.0,0.04239]
[1757101960817,1.19195,111420.0,111410.0,0.04239]
[1757101961017,1.9231352,111420.0,111410.0,0.04239]
[1757101962920,1.19195,111420.0,111410.0,0.04239]
[1757101963121,0.7365026,111420.0,111410.0,0.4079826]
[1757101963320,1.5572626,111420.0,111410.0,0.4079826]
[1757101963920,1.5572626,111420.0,111410.0,0.04239]
[1757101964120,1.5572626,111420.0,111410.0,0.4079826]
[1757101964317,0.3757026,111420.0,111410.0,0.4079826]
[1757101964517,0.01011,111420.0,111410.0,0.7779826]
[1757101964717,0.83095,111420.0,111410.0,0.4079826]
[1757101965320,1.1965426,111420.0,111410.0,0.4079826]
[1757101965515,0.83095,111420.0,111410.0,0.4079826]
[1757101965723,1.1965426,111420.0,111410.0,0.4079826]
[1757101967019,1.1965426,111420.0,111410.0,0.4977342]
[1757101967927,1.1965426,111420.0,111410.0,0.7677342]
[1757101968221,1.1965426,111420.0,111410.0,1.1285342]
[1757101968525,0.83071,111420.0,111410.0,1.1285342]
[1757101969021,1.1963026,111420.0,111410.0,1.1285342]
[1757101969623,1.1963026,111420.0,111410.0,1.1885342]
[1757101969818,1.1963026,111420.0,111410.0,0.8585342]
[1757101970223,1.1963026,111420.0,111410.0,0.7687826]
[1757101971827,1.1963026,111420.0,111410.0,1.1185342]
[1757101972025,1.1960626,111420.0,111410.0,1.1185342]
[1757101972226,1.1960626,111420.0,111410.0,1.0985342]
[1757101972527,0.83047,111420.0,111410.0,1.0985342]
[1757101972728,0.01031,111430.0,111420.0,0.1253336]
[1757101972921,0.01031,111430.0,111420.0,0.4861336]
[1757101972922,0.83047,111430.0,111420.0,0.4861336]
[1757101973227,0.83047,111430.0,111420.0,1.5973188]
[1757101973727,0.83047,111430.0,111420.0,1.8473188]
[1757101973929,0.82036,111430.0,111420.0,1.8493188]
[1757101975824,0.3657926,111440.0,111420.0,1.8513188]
[1757101976025,1.1962626,111440.0,111430.0,0.4011826]
[1757101976330,1.1960626,111440.0,111430.0,0.4011826]
[1757101977532,1.1960626,111440.0,111430.0,0.4021826]
[1757101978030,0.37111,111450.0,111440.0,0.03559]
[1757101978223,0.85703106,111450.0,111440.0,0.4011826]
[1757101978423,0.85703106,111450.0,111440.0,0.8565027]
[1757101978625,0.85703106,111450.0,111440.0,1.5273027]
[1757101979430,0.83047,111450.0,111440.0,1.5273027]
[1757101979626,0.83147,111450.0,111440.0,1.5273027]
[1757101980136,0.83147,111450.0,111440.0,1.4375752]
[1757101980338,0.83147,111450.0,111440.0,0.70639]
[1757101980539,0.83147,111450.0,111440.0,1.0719826]
[1757101980733,0.83047,111450.0,111440.0,1.0719826]
[1757101980938,0.83047,111450.0,111440.0,1.4395752]
[1757101981141,0.83047,111450.0,111440.0,1.4415752]
[1757101981342,0.83047,111450.0,111440.0,1.0759826]
[1757101982042,0.83047,111450.0,111440.0,1.5313028]
[1757101982237,0.01011,111450.0,111440.0,1.5313028]
[1757101982436,0.01031,111460.0,111450.0,0.03559]
[1757101982736,1.05298502,111460.0,111450.0,0.4011826]
[1757101983542,0.68739242,111460.0,111450.0,0.4011826]
[1757101983738,1.05298502,111460.0,111450.0,0.4011826]
[1757101983940,1.05298502,111460.0,111450.0,0.4021826]
[1757101984141,1.0264226,111460.0,111450.0,0.4021826]
[1757101984341,1.3920152,111460.0,111450.0,0.03659]
[1757101984742,1.6420152,111460.0,111450.0,0.001]
[1757101986846,2.0038152,111460.0,111440.0,0.3790726]
[1757101987047,0.3757026,111450.0,111440.0,0.7311826]
[1757101987945,0.3757026,111450.0,111440.0,0.7321826]
[1757101988746,0.3757026,111450.0,111440.0,0.36659]
[1757101989046,0.3757026,111450.0,111440.0,0.7321826]
[1757101990546,0.01011,111450.0,111440.0,0.7321826]
[1757101990749,0.3757026,111450.0,111440.0,0.7321826]
[1757101990943,0.01011,111450.0,111440.0,0.7321826]
[1757101991145,0.3757026,111450.0,111440.0,0.7321826]
[1757101991942,0.3657926,111460.0,111440.0,1.7983002]
[1757101992143,0.01031,111460.0,111450.0,0.4011826]
[1757101992346,1.1959026,111460.0,111450.0,0.4011826]
[1757101993550,1.1969026,111460.0,111450.0,0.4011826]
[1757101994051,1.1959026,111460.0,111450.0,0.4011826]
[1757101994252,1.1959026,111460.0,111450.0,0.4021826]
[1757101995247,1.5614952,111460.0,111450.0,0.03659]
[1757101995445,1.9222952,111460.0,111450.0,0.03659]
[1757101996751,1.9232952,111460.0,111450.0,0.03559]
[1757101997349,1.19211,111460.0,111450.0,0.03559]
[1757101997554,1.9232952,111460.0,111450.0,0.03559]
[1757101998153,1.9222952,111460.0,111450.0,0.03659]
[1757101999156,2.1722952,111460.0,111450.0,0.001]
[1757102000255,2.1742952,111460.0,111440.0,0.01348]
[1757102000455,0.7365026,111450.0,111440.0,0.03586]
[1757102001558,0.7365026,111450.0,111440.0,0.03686]
[1757102005362,0.7365026,111450.0,111440.0,0.4024526]
[1757102009056,0.3757026,111450.0,111440.0,0.4024526]
[1757102009460,0.83023,111450.0,111440.0,0.4024526]
[1757102009656,1.1958226,111450.0,111440.0,0.4024526]
[1757102013772,0.83023,111450.0,111440.0,0.4024526]
[1757102014064,1.1958226,111450.0,111440.0,0.4024526]
[1757102015761,1.1958226,111450.0,111440.0,0.03686]
[1757102016061,1.1958226,111450.0,111440.0,0.4024526]
[1757102017868,1.1958226,111450.0,111440.0,0.7632526]
[1757102019469,0.01011,111450.0,111440.0,1.5885727]
[1757102019769,0.3759026,111460.0,111450.0,0.03599]
[1757102019959,1.1957826,111460.0,111450.0,0.4015826]
[1757102021274,1.1957826,111460.0,111450.0,0.4913021]
[1757102021464,0.83019,111460.0,111450.0,0.4757095]
[1757102023067,0.83119,111460.0,111450.0,0.1257095]
[1757102023572,0.83119,111460.0,111450.0,0.03599]
[1757102023764,0.83019,111460.0,111450.0,0.03699]
[1757102026365,1.19546917,111460.0,111450.0,0.01461]
[1757102026570,1.19546917,111460.0,111450.0,0.001]
[1757102026873,1.19546917,111460.0,111450.0,0.03651]
[1757102027872,1.19546917,111460.0,111450.0,0.03551]
[1757102028071,1.19546917,111460.0,111450.0,0.03651]
[1757102028863,0.83015,111460.0,111450.0,0.03651]
[1757102029173,0.83015,111460.0,111450.0,0.40178917]
[1757102030770,0.83015,111460.0,111450.0,0.03651]
[1757102031172,0.83015,111460.0,111450.0,0.03551]
[1757102031367,0.83015,111460.0,111450.0,0.03751]
[1757102032365,0.83015,111460.0,111450.0,0.1272295]
[1757102032669,0.83015,111460.0,111450.0,0.03751]
[1757102033970,0.83015,111460.0,111450.0,0.03551]
[1757102035371,0.79708584,111470.0,111460.0,0.03551]
[1757102035372,0.83031,111470.0,111460.0,0.03551]
[1757102035670,0.83011,111470.0,111460.0,0.76158917]
[1757102035867,0.83011,111470.0,111460.0,1.08158917]
[1757102036771,0.83011,111470.0,111460.0,1.08258917]
[1757102037271,0.83011,111470.0,111460.0,0.76258917]
[1757102037471,0.83011,111470.0,111460.0,0.85230057]
[1757102037772,0.83111,111470.0,111460.0,0.39731]
[1757102037968,0.03738518,111470.0,111460.0,1.16230057]
[1757102038272,0.85738518,111470.0,111460.0,1.16230057]
[1757102038570,0.85638518,111470.0,111460.0,1.23403213]
[1757102039471,0.83011,111470.0,111460.0,1.23403213]
[1757102040374,1.19538917,111470.0,111460.0,0.39731]
[1757102040862,0.83011,111470.0,111460.0,0.39731]
[1757102041069,1.19538917,111470.0,111460.0,0.39731]
[1757102042471,0.83011,111470.0,111460.0,0.39731]
[1757102043373,0.83011,111470.0,111460.0,0.85230057]
[1757102043574,0.83011,111470.0,111460.0,0.76258917]
[1757102044775,0.83011,111470.0,111460.0,0.39831]
[1757102044972,0.83011,111470.0,111460.0,0.76358917]
[1757102045272,0.83011,111470.0,111460.0,0.76458917]
[1757102045974,0.83011,111470.0,111460.0,0.39831]
[1757102046270,1.19538917,111470.0,111460.0,0.39831]
[1757102047377,1.19538917,111470.0,111460.0,0.39731]
[1757102047880,0.82999,111470.0,111460.0,0.76258917]
[1757102049380,0.82999,111470.0,111460.0,0.76158917]
[1757102049580,0.82999,111470.0,111460.0,0.76358917]
[1757102049876,0.82999,111470.0,111460.0,0.76458917]
[1757102050267,0.01011,111470.0,111460.0,1.17330057]
[1757102050474,0.0002,111480.0,111470.0,0.1252134]
[1757102050673,0.01031,111490.0,111480.0,0.03551]
[1757102050974,0.85782917,111490.0,111480.0,0.39631]
[1757102051168,0.85782917,111490.0,111480.0,0.03551]
[1757102052175,0.37538917,111490.0,111480.0,0.03551]
[1757102052773,0.01011,111490.0,111480.0,0.03551]
[1757102053284,0.01111,111490.0,111480.0,0.03551]
[1757102055181,0.01111,111490.0,111480.0,0.40078917]
[1757102055374,0.01111,111490.0,111480.0,0.03551]
[1757102063882,0.01111,111490.0,111480.0,1.53551]
[1757102065286,0.73718917,111490.0,111480.0,1.53551]
[1757102065488,0.98718917,111490.0,111480.0,0.01308]
[1757102065782,0.98718917,111490.0,111470.0,0.01308]
[1757102065978,1.19542917,111480.0,111470.0,1.53606]
[1757102066183,0.83015,111480.0,111470.0,1.53606]
[1757102067180,1.19542917,111480.0,111470.0,1.53606]
[1757102068486,1.19542917,111480.0,111470.0,1.53706]
[1757102068900,0.83015,111480.0,111470.0,1.53706]
[1757102069082,0.83015,111480.0,111470.0,1.90233917]
[1757102069083,0.01011,111480.0,111470.0,1.90233917]
[1757102069279,0.83003,111480.0,111470.0,1.90133917]
[1757102069485,0.83003,111480.0,111470.0,2.35284257]
[1757102069685,0.83003,111480.0,111470.0,2.26313917]
[1757102070483,0.83003,111480.0,111470.0,1.89786]
[1757102070686,0.83003,111480.0,111470.0,2.26313917]
[1757102070989,0.83003,111480.0,111470.0,1.89786]
[1757102071186,0.83003,111480.0,111470.0,2.26313917]
[1757102074588,0.83003,111480.0,111470.0,2.35284257]
[1757102075193,0.83003,111480.0,111470.0,2.66284257]
[1757102076293,0.01011,111480.0,111470.0,2.66284257]
[1757102079792,0.01031,111490.0,111480.0,0.1264453]
[1757102080091,0.01011,111490.0,111480.0,1.17252447]
[1757102080294,0.37211,111500.0,111490.0,0.01377]
[1757102080485,0.85684765,111500.0,111490.0,0.49171637]
[1757102080685,0.85684765,111500.0,111490.0,0.40202917]
[1757102080894,1.21764765,111500.0,111490.0,0.03675]
[1757102081091,0.85684765,111500.0,111490.0,0.03675]
[1757102081397,1.21764765,111500.0,111490.0,0.03675]
[1757102082293,1.21964765,111500.0,111490.0,0.03675]
[1757102083500,1.5846654,111500.0,111490.0,0.40176775]
[1757102083801,1.5856654,111500.0,111490.0,0.40176775]
[1757102085502,1.5856654,111500.0,111490.0,0.49145495]
[1757102087403,1.5856654,111500.0,111490.0,0.40176775]
[1757102088399,1.95068315,111500.0,111490.0,0.01377]
[1757102088700,2.20068315,111500.0,111470.0,0.01318]
[1757102088906,0.37512775,111480.0,111470.0,0.82937105]
[1757102089103,1.19488775,111480.0,111470.0,0.82937105]
[1757102089697,1.19488775,111480.0,111470.0,1.10046775]
[1757102090006,0.81976,111480.0,111470.0,1.19017105]
[1757102090207,0.01011,111480.0,111470.0,1.19017105]
[1757102090506,0.36521775,111490.0,111470.0,1.19017105]
[1757102090507,0.0002,111490.0,111480.0,0.1247653]
[1757102090706,0.01131,111500.0,111490.0,0.03507]
[1757102090906,0.01111,111500.0,111490.0,0.40008775]
[1757102093209,0.01311,111500.0,111490.0,0.40008775]
[1757102093803,0.01411,111500.0,111490.0,0.40008775]
[1757102094504,0.01411,111500.0,111490.0,0.03507]
[1757102094704,0.01411,111500.0,111490.0,0.40008775]
[1757102095106,0.37912775,111500.0,111490.0,0.40008775]
[1757102095909,0.37712775,111500.0,111490.0,0.40008775]
[1757102097411,0.37612775,111500.0,111490.0,0.40108775]
[1757102097612,0.37612775,111500.0,111490.0,0.03607]
[1757102097812,0.37612775,111500.0,111490.0,0.40108775]
[1757102098410,0.01111,111500.0,111490.0,0.40108775]
[1757102098608,0.37612775,111500.0,111490.0,0.40108775]
[1757102098806,0.01111,111500.0,111490.0,0.40108775]
[1757102099112,0.37612775,111500.0,111490.0,0.40108775]
[1757102100306,0.001,111500.0,111490.0,1.1857928]
[1757102100714,0.001,111500.0,111490.0,0.82077505]
[1757102101013,0.01111,111500.0,111490.0,0.84077505]
[1757102101909,0.37612775,111500.0,111490.0,0.40108775]
[1757102102108,0.01111,111500.0,111490.0,0.49077495]
[1757102102610,0.01111,111500.0,111490.0,0.83077495]
[1757102102811,0.01111,111500.0,111490.0,0.85077495]
[1757102103113,0.01111,111500.0,111490.0,0.76108775]
[1757102103315,0.01111,111500.0,111490.0,0.4857573]
[1757102103509,0.01111,111500.0,111490.0,0.85077505]
[1757102105212,0.37612775,111500.0,111490.0,0.76108775]
[1757102105714,0.01111,111500.0,111490.0,0.76108775]
[1757102106016,0.37612775,111500.0,111490.0,0.76108775]
[1757102106213,0.01111,111500.0,111490.0,0.76108775]
[1757102106417,0.37612775,111500.0,111490.0,0.76108775]
[1757102107507,0.01111,111500.0,111490.0,0.76108775]
[1757102109017,0.01111,111500.0,111490.0,0.85077505]
[1757102109315,0.001,111500.0,111490.0,0.85077505]
[1757102109916,0.01111,111500.0,111490.0,0.85077505]
[1757102110314,0.01111,111500.0,111490.0,0.76108775]
[1757102110616,0.01111,111500.0,111490.0,0.85077495]
[1757102111319,0.001,111500.0,111490.0,0.85077495]
[1757102111521,0.01111,111500.0,111490.0,0.85077495]
[1757102111823,0.001,111500.0,111490.0,0.85077495]
[1757102115826,0.01111,111500.0,111490.0,0.4857572]
[1757102116119,0.01111,111500.0,111490.0,0.85077495]
[1757102116321,0.01111,111500.0,111490.0,0.76108775]
[1757102116623,0.01111,111500.0,111490.0,0.85077495]
[1757102118023,0.001,111500.0,111490.0,0.85077495]
[1757102124328,0.01111,111500.0,111490.0,0.85077495]
[1757102124627,0.001,111500.0,111490.0,0.85077495]
[1757102125528,0.001,111500.0,111490.0,0.4857572]
[1757102125728,0.01111,111500.0,111490.0,0.85077495]
[1757102126628,0.01111,111500.0,111490.0,0.4857572]
[1757102127027,0.01111,111500.0,111490.0,0.76108775]
[1757102127223,0.37612775,111500.0,111490.0,0.85077505]
[1757102127729,0.01111,111500.0,111490.0,0.85077505]
[1757102129529,0.37612775,111500.0,111490.0,0.85077505]
[1757102130229,0.01111,111500.0,111490.0,0.85077505]
[1757102130933,0.37612775,111500.0,111490.0,0.85077505]
[1757102131333,0.37612775,111500.0,111490.0,0.76108775]
[1757102131829,0.01111,111500.0,111490.0,0.85077495]
[1757102132536,0.01111,111500.0,111490.0,0.4857572]
[1757102132833,0.01111,111500.0,111490.0,0.85077495]
[1757102135335,0.37612775,111500.0,111490.0,0.76108775]
[1757102136334,0.01111,111500.0,111490.0,0.76108775]
[1757102136735,0.01111,111500.0,111490.0,0.85077495]
[1757102138734,0.37612775,111500.0,111490.0,0.76108775]
[1757102139540,0.01111,111500.0,111490.0,0.85077495]
[1757102143343,0.01111,111500.0,111490.0,0.4857572]
[1757102143543,0.01111,111500.0,111490.0,0.85077495]
[1757102144747,0.37612775,111500.0,111490.0,0.76108775]
[1757102145442,0.01111,111500.0,111490.0,0.76105338]
[1757102145638,0.01111,111500.0,111490.0,0.85074058]
[1757102146244,0.001,111500.0,111490.0,0.85074058]
[1757102146450,0.01111,111500.0,111490.0,0.85074058]
[1757102147150,0.01111,111500.0,111490.0,0.84974058]
[1757102147350,0.01111,111500.0,111490.0,0.85174058]
[1757102147652,0.01111,111500.0,111490.0,0.85274058]
[1757102147950,0.01111,111500.0,111490.0,0.4877572]
[1757102148251,0.01111,111500.0,111490.0,0.85274058]
[1757102148851,0.01111,111500.0,111490.0,0.4877572]
[1757102149052,0.01111,111500.0,111490.0,0.85274058]
[1757102149638,0.01111,111500.0,111490.0,2.35274058]
[1757102151253,0.001,111500.0,111490.0,2.35274058]
[1757102165760,0.001,111500.0,111490.0,3.17390058]
[1757102171268,0.001,111500.0,111490.0,2.26305338]
[1757102172368,0.001,111500.0,111490.0,2.26205338]
[1757102172562,0.001,111500.0,111490.0,2.35174058]
[1757102174569,0.001,111500.0,111490.0,2.35074058]
[1757102175365,0.001,111500.0,111490.0,2.35174058]
[1757102184477,0.001,111500.0,111490.0,2.09174058]
[1757102184675,0.001,111500.0,111490.0,2.37174058]
[1757102184870,0.001,111500.0,111490.0,2.28205338]
[1757102185078,0.001,111500.0,111490.0,2.37174058]
[1757102185378,0.001,111500.0,111490.0,2.27205338]
[1757102186479,0.001,111500.0,111490.0,2.36174058]
[1757102187082,0.001,111500.0,111490.0,2.27205338]
[1757102187481,0.001,111500.0,111490.0,2.36174058]
[1757102192280,0.001,111500.0,111490.0,3.18182058]
[1757102204780,0.001,111500.0,111490.0,1.68182058]
[1757102204981,0.62609338,111500.0,111490.0,0.03707]
[1757102205185,0.62609338,111500.0,111490.0,0.002]
[1757102206276,0.62609338,111500.0,111480.0,0.0135]
[1757102206482,1.19513338,111490.0,111480.0,0.03616]
[1757102207584,1.19533229,111490.0,111480.0,0.03616]
[1757102208284,1.19533229,111490.0,111480.0,0.36616]
[1757102209080,0.01011,111490.0,111480.0,0.36616]
[1757102209286,0.01011,111490.0,111480.0,1.18621988]
[1757102209287,0.001,111490.0,111480.0,1.18621988]
[1757102209682,0.002,111490.0,111480.0,1.18621988]
[1757102209884,0.002,111490.0,111480.0,0.82103759]
[1757102210379,0.002,111490.0,111480.0,1.18621988]
[1757102210885,0.001,111490.0,111480.0,2.68721988]
[1757102211284,0.001,111490.0,111480.0,2.23234229]
[1757102211783,0.45974229,111500.0,111480.0,2.23234229]
[1757102211990,0.46985229,111500.0,111490.0,0.40050229]
[1757102212195,0.46965229,111500.0,111490.0,0.40050229]
[1757102212489,0.46965229,111500.0,111490.0,0.03532]
[1757102214184,0.83483458,111500.0,111490.0,0.03532]
[1757102216080,0.83583458,111500.0,111490.0,0.03532]
[1757102216888,0.83683458,111500.0,111490.0,0.03532]
[1757102217382,0.01311,111500.0,111490.0,0.76050229]
[1757102217587,0.37829229,111500.0,111490.0,0.40050229]
[1757102218892,0.37729229,111500.0,111490.0,0.40050229]
[1757102220284,0.37629229,111500.0,111490.0,0.40050229]
[1757102221590,0.37629229,111500.0,111490.0,0.72050229]
[1757102221784,0.01111,111500.0,111490.0,0.81018949]
[1757102221989,0.001,111500.0,111490.0,1.17537178]
[1757102222186,0.001,111500.0,111490.0,0.81018949]
[1757102222698,0.01111,111500.0,111490.0,0.72050229]
[1757102222990,0.001,111500.0,111490.0,0.72050229]
[1757102223187,0.001,111500.0,111490.0,0.72150229]
[1757102223490,1.81159458,111500.0,111490.0,0.03632]
[1757102224095,1.81159458,111500.0,111490.0,0.03732]
[1757102224986,1.44641229,111500.0,111490.0,0.03632]
[1757102225186,1.81259458,111500.0,111490.0,0.03632]
[1757102226584,1.81259458,111500.0,111490.0,0.03532]
[1757102226789,1.81359458,111500.0,111490.0,0.03532]
[1757102227193,1.81259458,111500.0,111490.0,0.03532]
[1757102227493,1.19841229,111500.0,111490.0,0.40050229]
[1757102227993,1.19841229,111500.0,111490.0,0.03532]
[1757102228191,1.56359458,111500.0,111490.0,0.03532]
[1757102228794,1.56259458,111500.0,111490.0,0.03532]
[1757102230095,1.56159458,111500.0,111490.0,0.03532]
[1757102230792,1.56259458,111500.0,111490.0,0.03532]
[1757102230991,1.56359458,111500.0,111490.0,0.03532]
[1757102231897,1.56259458,111500.0,111490.0,0.03532]
[1757102233896,1.56159458,111500.0,111490.0,0.03532]
[1757102237298,1.56259458,111500.0,111490.0,0.03532]
[1757102238199,1.56359458,111500.0,111490.0,0.03532]
[1757102238591,1.56259458,111500.0,111490.0,0.03532]
[1757102238893,1.56159458,111500.0,111490.0,0.03532]
[1757102243204,1.56259458,111500.0,111490.0,0.03532]
[1757102245204,1.56359458,111500.0,111490.0,0.03532]
[1757102246402,1.56359458,111500.0,111490.0,0.01266]
[1757102246596,2.18509687,111500.0,111480.0,0.0135]
[1757102246802,0.74047458,111490.0,111470.0,1.51308]
[1757102247001,0.74047458,111490.0,111470.0,1.54308]
[1757102247002,1.55204458,111480.0,111470.0,1.54308]
[1757102248904,0.82168,111480.0,111470.0,1.54308]
[1757102249096,1.55204458,111480.0,111470.0,1.54408]
[1757102249803,1.56097613,111480.0,111470.0,1.51408]
[1757102251605,1.56097613,111480.0,111470.0,1.51308]
[1757102251908,1.56197613,111480.0,111470.0,1.51308]
[1757102252106,1.56197613,111480.0,111470.0,1.69308]
[1757102252301,0.82368,111480.0,111470.0,1.89308]
[1757102252501,0.73236458,111480.0,111470.0,1.89308]
[1757102252801,1.55588458,111480.0,111470.0,1.89308]
[1757102253001,1.55488458,111480.0,111470.0,1.89308]
[1757102253305,0.8246,111480.0,111470.0,1.89308]
[1757102253500,1.55396458,111480.0,111470.0,1.89308]
[1757102254907,0.37549229,111490.0,111480.0,0.03615]
[1757102255106,1.19913229,111490.0,111480.0,0.76133229]
[1757102255498,0.37529229,111490.0,111480.0,0.76133229]
[1757102255695,1.19917229,111490.0,111480.0,0.76133229]
[1757102259405,0.83399,111490.0,111480.0,0.76133229]
[1757102259896,1.19917229,111490.0,111480.0,0.76133229]
[1757102260406,0.83359,111490.0,111480.0,1.21620978]
[1757102260606,0.82348,111490.0,111480.0,1.46620978]
[1757102261410,0.82348,111490.0,111480.0,1.37651458]
[1757102263304,0.82348,111490.0,111480.0,0.64615]
[1757102263506,0.82348,111490.0,111480.0,1.37651458]
[1757102265010,0.82348,111490.0,111480.0,1.46620988]
[1757102265212,0.82348,111490.0,111480.0,1.37651458]
[1757102266011,0.82348,111490.0,111480.0,0.64615]
[1757102266213,0.82348,111490.0,111480.0,1.37651458]
[1757102267412,1.44877229,111490.0,111480.0,0.39615]
[1757102267606,0.00632,111440.0,111430.0,0.16069509]
[1757102267910,0.0045,111430.0,111390.0,0.41401991]
[1757102268107,0.0379,111420.0,111400.0,0.01309]
[1757102268300,0.0001,111420.0,111410.0,0.01309]
[1757102268509,0.79242229,111420.0,111410.0,0.03483]
[1757102268709,0.42724,111420.0,111410.0,0.41319229]
[1757102268912,0.0002,111430.0,111420.0,0.1245735]
[1757102269210,0.0002,111440.0,111430.0,0.1245655]
[1757102269420,0.36538229,111450.0,111440.0,0.03483]
[1757102269613,1.19013789,111460.0,111450.0,0.01309]
[1757102269912,1.18993789,111460.0,111450.0,0.01309]
[1757102270514,0.8246,111460.0,111450.0,0.04801]
[1757102270707,0.8246,111460.0,111450.0,0.66334789]
[1757102270907,0.36553789,111470.0,111450.0,0.66334789]
[1757102270908,0.0002,111470.0,111460.0,0.03483]
[1757102271108,1.19057789,111480.0,111470.0,0.01309]